Cogmind - Beta 13 @@@ ROGUE MODE // 2024.04.17 @ 20:27:41 Player: lazy_engineer Result: Destroyed by S-10 Pest with Light Assault Rifle Performance ------------- Evolutions (0) 0 Regions Visited (4) 800 Robots Destroyed (12) 60 Value Destroyed (185) 185 Prototype IDs (24) 480 Alien Tech Used (0) 0 Bonus (300) 300 TOTAL SCORE: 1825 Bonus ------- Aligned with FarCom 300 Cogmind --------- Core Integrity 0/250 Matter 300/300 Energy 250/250 System Corruption 1% Temperature Cool (0) Movement Treading (160) Location -9/Mines Parts ------- > --- POWER (1) -------- Ion Engine > --- PROPULSION (2) --- Light Treads Improved Treads > --- UTILITY (2) ------ Medium Storage Unit Modified TNC > --- WEAPON (2) ------- Light Assault Rifle Makeshift Axe > --- INVENTORY (10) --- Structural Scanner Signal Interpreter Hacking Suite Splice Drone Bay (6/6) EM Pulse Gun Light Assault Rifle Light Assault Rifle Shotgun Grenade Launcher Datajack Peak State ------------ > --- POWER ------------ Ion Engine > --- PROPULSION ------- Light Treads Light Treads > --- UTILITY ---------- Medium Storage Unit Splice Drone Bay > --- WEAPON ----------- Assault Rifle Makeshift Axe > --- INVENTORY -------- Structural Scanner Signal Interpreter Hacking Suite EM Pulse Gun Light Assault Rifle Light Assault Rifle Light Assault Rifle Grenade Launcher Datajack [Rating: 17] Favorites ----------- Power Ion Engine Engine Ion Engine Propulsion Light Treads Treads Light Treads Wheel Wheel Utility Medium Storage Unit Device Splice Drone Bay Storage Medium Storage Unit Processor Modified TNC Weapon Makeshift Axe Energy Gun EM Pulse Gun Ballistic Gun Assault Rifle Slashing Weapon Makeshift Axe Special Melee Weapon Datajack Build | -11 -10 -10 -10 -9 ------- Run | Yrd Mat Min Exi Min Slots Evolved . | . . . . . Power . | . . . . . Propulsion . | . . . . . Utility . | . . . . . Weapon . | . . . . . Parts Attached 21 | 7 5 5 2 2 Power 2 | 1 1 . . . Engine 2 | 1 1 . . . Core . | . . . . . Reactor . | . . . . . Propulsion 5 | 3 1 . . 1 Treads 4 | 2 1 . . 1 Leg . | . . . . . Wheel 1 | 1 . . . . Hover . | . . . . . Flight . | . . . . . Utility 5 | 1 1 2 1 . Device 2 | . 1 1 . . Storage 2 | 1 . 1 . . Processor 1 | . . . 1 . Hackware . | . . . . . Protection . | . . . . . Artifact . | . . . . . Weapon 9 | 2 2 3 1 1 Energy Gun 2 | 2 . . . . Energy Cannon . | . . . . . Ballistic Gun 3 | . 1 1 . 1 Ballistic Cannon . | . . . . . Launcher . | . . . . . Special Weapon . | . . . . . Impact Weapon . | . . . . . Slashing Weapon 2 | . 1 1 . . Piercing Weapon . | . . . . . Special Melee Weapon 2 | . . 1 1 . Unidentified Prototypes 1 | . . 1 . . Parts Lost 5 | . 3 2 . . Power 1 | . 1 . . . Propulsion 2 | . 1 1 . . Utility . | . . . . . Weapon 2 | . 1 1 . . Highest Loss Streak 3 | . 2 3 . . To Critical Strikes . | . . . . . Average Slot Usage (%) 91 | . 95 93 85 93 Engine 13 | . 13 14 14 14 Treads 18 | . 14 22 14 21 Wheel 2 | . 13 . . . Device 10 | . 12 14 11 . Storage 14 | . 14 14 14 14 Processor 2 | . . . 2 14 Energy Gun 2 | . 11 . . . Ballistic Gun 7 | . 2 14 . 12 Slashing Weapon 13 | . 12 13 14 14 Special Melee Weapon 3 | . . . 14 1 Naked Turns . | . . . . . Heaviest Build 28 | 12 15 28 27 19 Greatest Support 43 | 40 20 40 20 43 Greatest Overweight (x) 1 | 1 1 1 1 . Average Overweight (x) . | . . . . . Largest Inventory Capacity 10 | 8 8 10 10 10 Average Capacity 9 | 7 8 9 10 10 Most Carried 10 | 5 8 10 10 10 Average Carried 8 | 2 6 8 9 10 Final Capacity 10 | 8 8 10 10 10 Final Carried 10 | 3 6 10 10 10 Class Distribution -------------------- 100% | Mutant Dominant Class ---------------- Mutant | -10/Materials Mutant | -10/Mines Mutant | -10/Exiles Mutant | -9/Mines Resources | -11 -10 -10 -10 -9 ----------- Run | Yrd Mat Min Exi Min Matter Collected 433 | 258 52 83 . 40 Remotely . | . . . . . Salvage Created 295 | . 196 79 . 20 Parts 30 | . 18 11 . 1 Haulers Intercepted 1 | . 1 . . . Recyclers Shooed . | . . . . . Parts Field Recycled . | . . . . . Retrieved Matter . | . . . . . Parts Self-Destructed . | . . . . . Prevented . | . . . . . Kills | -11 -10 -10 -10 -9 ------- Run | Yrd Mat Min Exi Min Combat Hostiles Destroyed 9 | . 3 5 . 1 Melee 4 | . 3 . . 1 Guns 5 | . . 5 . . Classes Destroyed 5 | . 5 . . . Hauler 1 | . 1 . . . Operator 1 | . 1 . . . Watcher 1 | . 1 . . . Swarmer 7 | . 1 5 . 1 Grunt 2 | . 2 . . . Best Kill Streak 3 | . 2 3 . 1 Combat Bots Only 3 | . 2 3 . 1 Max Kills in Single Turn 1 | . 1 1 . 1 Gunslinging . | . . . . . Exploded . | . . . . . Melee 1 | . 1 . . 1 Uniques/NPCs Destroyed . | . . . . . Combat | -11 -10 -10 -10 -9 -------- Run | Yrd Mat Min Exi Min Hostile Shots Fired 110 | . 62 32 . 16 Missed 22 | . 6 10 . 6 Damage Taken 934 | . 635 218 . 81 Core 255 | . 162 67 . 26 Absorbed by Shields . | . . . . . Core Remaining (%) 100 | 100 . . . . Volleys Fired 13 | . 2 11 . . Largest 2 | . 2 1 . . Hottest 80 | . 80 20 . . Shots Fired 14 | . 3 11 . . Gun 14 | . 3 11 . . Cannon . | . . . . . Launcher . | . . . . . Special . | . . . . . Kinetic 11 | . . 11 . . Thermal . | . . . . . Explosive . | . . . . . Electromagnetic 3 | . 3 . . . Robot Hit Streak 3 | . 2 3 . . Robot Miss Streak 3 | . . 3 . . Penetration Max . | . . . . . Secondary Targets . | . . . . . Shots Hit Robots 21 | . 13 7 . 1 Core Hits 12 | . 6 5 . 1 Critical Kills . | . . . . . Critical Parts Destroyed . | . . . . . Critical Strikes 1 | . . 1 . . Sever 1 | . . 1 . . Melee Attacks 20 | . 16 2 . 2 Impact . | . . . . . Slashing 20 | . 16 2 . 2 Piercing . | . . . . . Sneak Attacks 1 | . 1 . . . Combat Hostiles . | . . . . . Follow-up Attacks . | . . . . . Damage Inflicted 469 | . 296 133 . 40 Guns 146 | . 42 104 . . Cannons . | . . . . . Explosions . | . . . . . Melee 323 | . 254 29 . 40 Ramming . | . . . . . Kinetic 104 | . . 104 . . Thermal . | . . . . . Explosive . | . . . . . Electromagnetic 42 | . 42 . . . Impact . | . . . . . Slashing 323 | . 254 29 . 40 Piercing . | . . . . . Highest Corruption 1 | . 1 1 1 1 Average Corruption 1 | . 1 1 1 1 Corruption Purged . | . . . . . Corruption Blocked . | . . . . . Effects 8 | . 2 2 3 1 Message Errors 2 | . 1 1 . . Heat Flow Errors 2 | . 1 . 1 . Energy Discharges 1 | . . . 1 . Data Loss (minor) 2 | . . . 1 1 Data Loss (major) 1 | . . 1 . . Overload Shots . | . . . . . Overflow Damage 22 | . 22 . . . Projectiles . | . . . . . Explosions . | . . . . . Melee 22 | . 22 . . . Knockbacks . | . . . . . Impact . | . . . . . Kinetic . | . . . . . Secondary . | . . . . . Self-Inflicted Damage . | . . . . . Shots . | . . . . . Rammed . | . . . . . Targets Rammed . | . . . . . Kicked . | . . . . . Crushed . | . . . . . Highest Temperature 279 | . 279 . 236 . Average Temperature 113 | . 109 . 120 . Received Heat Transfer 330 | . 330 . . . Siege Activations . | . . . . . Robots Corrupted . | . . . . . Combat Hostiles . | . . . . . Parts Fried . | . . . . . Impact Corruptions . | . . . . . Robots Melted . | . . . . . Combat Hostiles . | . . . . . Parts Melted . | . . . . . Heat Transferred . | . . . . . Parts Sabotaged . | . . . . . Parts Stolen . | . . . . . Parts Stripped . | . . . . . Power Chain Reactions . | . . . . . Alert | -11 -10 -10 -10 -9 ------- Run | Yrd Mat Min Exi Min Peak Influence 146 | . 146 91 . 20 Initial 51 | . . 51 . . Average 54 | . 51 80 . . Maximum Alert Level . | . . . . . Low Security (%) 100 | 100 100 100 . 100 Level 1 . | . . . . . Level 2 . | . . . . . Level 3 . | . . . . . Level 4 . | . . . . . Level 5 . | . . . . . High Security . | . . . . . Max Security . | . . . . . Squads Dispatched 1 | . 1 . . . Investigation . | . . . . . Extermination . | . . . . . Reinforcement 1 | . 1 . . . Assault . | . . . . . Garrison . | . . . . . Intercept . | . . . . . Searches Triggered . | . . . . . Construction Impeded . | . . . . . Haulers Reinforced . | . . . . . Active Scanning Responses . | . . . . . Cargo Convoy Interrupts . | . . . . . Stealth | -11 -10 -10 -10 -9 --------- Run | Yrd Mat Min Exi Min Distress Signals 1 | . 1 . . . Communications Jammed . | . . . . . Distress Signals . | . . . . . Times Spotted 23 | . 13 6 . 4 Peak Tracking Total 8 | . 8 3 . 4 Tactical Retreats 1 | . 1 . . . Traps | -11 -10 -10 -10 -9 ------- Run | Yrd Mat Min Exi Min Traps Triggered 2 | . 1 1 . . Indirectly . | . . . . . Trap Hack Attempts . | . . . . . Triggered . | . . . . . Disarmed . | . . . . . Reprogrammed . | . . . . . Reused . | . . . . . Traps Extracted . | . . . . . Installed . | . . . . . Triggered . | . . . . . Machines | -11 -10 -10 -10 -9 ---------- Run | Yrd Mat Min Exi Min Machines Disabled . | . . . . . Max in Single Turn . | . . . . . Machines Repaired . | . . . . . Machines Dismantled . | . . . . . Machines Sabotaged . | . . . . . Overloaded Fab Kills . | . . . . . Hacking | -11 -10 -10 -10 -9 --------- Run | Yrd Mat Min Exi Min Machines Accessed 8 | . 4 3 1 . Terminals 5 | . 4 1 . . Fabricators . | . . . . . Repair Stations . | . . . . . Recycling Units . | . . . . . Scanalyzers . | . . . . . Garrison Access . | . . . . . Total Hacks 18 | . 14 3 1 . Successful 10 | . 6 3 1 . Failed 8 | . 8 . . . Catastrophic 1 | . 1 . . . Database Lockouts . | . . . . . Manual 14 | . 13 . 1 . Terminals 15 | . 14 1 . . Fabricators . | . . . . . Repair Stations . | . . . . . Recycling Units . | . . . . . Scanalyzers . | . . . . . Garrison Access . | . . . . . Terminal Hacks 7 | . 3 3 1 . Record 1 | . 1 . . . Open Door 2 | . . 2 . . Locate Traps 1 | . 1 . . . Zone Layout 2 | . 1 1 . . Derelict Proto ID Bank 1 | . . . 1 . Fabricator Hacks . | . . . . . Repair Station Hacks . | . . . . . Recycling Unit Hacks . | . . . . . Scanalyzer . | . . . . . Garrison Access Hacks . | . . . . . Unauthorized Hacks 3 | . 3 . . . Terminals 3 | . 3 . . . Track 1 | . 1 . . . Assimilate 1 | . 1 . . . Operators 1 | . 1 . . . Fabricators . | . . . . . Repair Stations . | . . . . . Recycling Units . | . . . . . Scanalyzers . | . . . . . Garrison Access . | . . . . . Data Cores Recovered 1 | . 1 . . . Used 1 | . 1 . . . Hacking Detections 5 | . 4 1 . . Full Trace Events 1 | . 1 . . . Feedback Events . | . . . . . Feedback Blocked . | . . . . . Robot Schematics Acquired . | . . . . . Robots Built . | . . . . . Authchips . | . . . . . Time . | . . . . . Total Robot Build Rating . | . . . . . Part Schematics Acquired . | . . . . . Parts Built . | . . . . . Authchips . | . . . . . Time . | . . . . . Total Part Build Rating . | . . . . . Parts Repaired . | . . . . . Time . | . . . . . Parts Recycled . | . . . . . Recycled Matter . | . . . . . Retrieved Matter . | . . . . . Retrieved Components . | . . . . . Parts Scanalyzed . | . . . . . Part Schematics Acquired . | . . . . . Parts Damaged . | . . . . . Bothacking | -11 -10 -10 -10 -9 ------------ Run | Yrd Mat Min Exi Min Used RIF Installer . | . . . . . Robots Hacked . | . . . . . Non-combat . | . . . . . Combat . | . . . . . Robot Hacks Applied . | . . . . . Relay Couplers Released . | . . . . . Fabnet Peak Effective % . | . . . . . Robots Rewired . | . . . . . Allies Hacked . | . . . . . Hacks Repelled . | . . . . . Allies | -11 -10 -10 -10 -9 -------- Run | Yrd Mat Min Exi Min Total Allies . | . . . . . Largest Group . | . . . . . Highest-Rated Group . | . . . . . Highest-Rated Ally . | . . . . . Total Orders . | . . . . . Ally Attacks . | . . . . . Total Damage . | . . . . . Kills . | . . . . . Allies Corrupted . | . . . . . Allies Melted . | . . . . . Intel | -11 -10 -10 -10 -9 ------- Run | Yrd Mat Min Exi Min Robot Analysis Total . | . . . . . Derelict Logs Recovered 2 | . . 2 . . Drone Launches . | . . . . . Drone Recoveries . | . . . . . Exploration | -11 -10 -10 -10 -9 ------------- Run | Yrd Mat Min Exi Min Turns Passed 1846 | 60 396 670 477 243 Spaces Moved 936 | 50 212 331 218 125 Core 5 | 5 . . . . Treads 681 | 3 4 331 218 125 Legs . | . . . . . Wheels 250 | 42 208 . . . Hover . | . . . . . Flight . | . . . . . Fastest Speed 50 | 50 95 160 160 160 Average Speed 163 | 88 96 185 216 160 Slowest Speed 240 | 160 160 240 240 160 Overloaded Moves . | . . . . . Propulsion Burnouts . | . . . . . Robots Hopped . | . . . . . Cave-ins Triggered . | . . . . . Exploration Rate (%) 39 | 4 44 51 61 37 Regions Visited 4 Branch Regions 3 Pre-discovered Areas . | . . . . . Known Exits Taken . | . . . . . Unknown Exits Taken 4 | 1 1 1 1 . Scrap Searched 3 | . . 1 . 2 Spaces Dug 1 | . 1 . . . Terrain Destroyed 1 | . 1 . . . Melee 1 | . 1 . . . Projectile . | . . . . . AOE . | . . . . . Terrain Rammed . | . . . . . Walls Destroyed . | . . . . . Machines Disabled . | . . . . . Actions | -11 -10 -10 -10 -9 --------- Run | Yrd Mat Min Exi Min Total 1197 | 65 369 374 223 166 Wait 182 | . 127 18 2 35 Move 932 | 49 211 330 217 125 Hop . | . . . . . Pick Up 24 | 9 7 6 1 1 Fast Attach 2 | . 1 . . 1 Attach 11 | 6 3 2 . . Detach . | . . . . . Swap 8 | 1 1 3 2 1 Drop 5 | . 1 2 1 1 Fire 13 | . 2 11 . . Melee 20 | . 16 2 . 2 Ram . | . . . . . Kick . | . . . . . Crush . | . . . . . Escape Stasis . | . . . . . Rewire . | . . . . . Trap . | . . . . . Miscellaneous . | . . . . . Route ------- -11/Scrapyard -10/Materials (discovered 2 exits: [*Mat] / *Min) -10/Mines -10/Exiles -9/Mines History --------- Turn | Location | Event 21 | -11/Scrapyard | Discovered new exit (range 16) 61 | -11/Scrapyard | Entered Materials 306 | -10/Materials | Build established: Mutant 389 | -10/Materials | Discovered new exit (range 12) 420 | -10/Materials | Discovered new exit (range 15) 451 | -10/Materials | Core integrity fell below 50% 457 | -10/Materials | Entered Mines 464 | -10/Mines | Learned 2 Materials zone layouts 497 | -10/Mines | Lost 3 parts (1p1n1w) 530 | -10/Mines | Deemed a non-threat by the Exiles lab entrance 530 | -10/Mines | Discovered new exit (range 5) 616 | -10/Mines | Found the Drone Emporium 624 | -10/Mines | Found Prototype Device 625 | -10/Mines | Identified Splice Drone Bay 644 | -10/Mines | A weapon hastily lodged in a ceiling crevice suddenly fell to the ground 752 | -10/Mines | Learned 2 Materials zone layouts 895 | -10/Mines | Met a Derelict who couldn't figure out how to use a Trap Extractor 908 | -10/Mines | Core integrity fell below 20% 1127 | -10/Mines | Entered Exiles 1187 | -10/Exiles | Met 8R-AWN 1230 | -10/Exiles | Met EX-HEX 1297 | -10/Exiles | Met EX-BIN 1329 | -10/Exiles | Aligned with FarCom system 1332 | -10/Exiles | Given EX-Vault access code 1388 | -10/Exiles | Opened EX-Vault 1403 | -10/Exiles | Found Modified TNC 1452 | -10/Exiles | Warned to stay clear of 0b10 Research branches 1516 | -10/Exiles | Met EX-DEC 1587 | -10/Exiles | Discovered new exit (range 12) 1604 | -10/Exiles | Left Exiles lab with Modified TNC 1604 | -10/Exiles | Entered Mines 1847 | -9/Mines | Destroyed by S-10 Pest with Light Assault Rifle Last Messages --------------- 01707_ Found Shotgun. 01707_ Found 22 Matter. 01707_ K-01 Serf collects debris. 01708_ Acquired 22 matter. 01710_ Acquired Imp. Treads. 01711_ K-01 Serf collects debris. 01715_ Dropped Lgt. Assault Rifle. 01715_ K-01 Serf collects debris. 01715_ Acquired Shotgun. 01719_ K-01 Serf collects debris. 01820_ Searching scrap... 01820_ Found Imp. Light Cannon. 01820_ Found ECM Suite. 01820_ Found 23 Matter. 01821_ Acquired 18 matter. 01822_ K-01 Serf collects debris. 01834_ C-30 ARC bursts open, deploying its payload. 01834_ S-10 Pest unfolds itself. 01835_ K-01 Serf collects debris. 01844_ S-10 Pest destroyed. Map ----- +----------------------------------------------------+ | ???????????????????????????????? ## | | ?????????????????????????????????? | | ???????????????????????????????????????# | | ??????????????????????????????????????## | | ????????????????????????????????????### ## | | ??????????????????????????????????### ####### | | ?????????????????????????????????? # ##????#### | | ??????????????????????????????????# ## ######??? | | ????????????????????????????####??# ### ##?? | | ????????????????????????????# #??# #?## #?? | | ???????????????????????????## #### #### #?? | | ???????????????????????????# ## ##?? | | ???????????????????????????# %" ###??? | | ??????????????????????????## k ##????? | | ??????????????????????????# ######?????? | | ??????????????????????????# ]% ####??????????? | | ?????????????? ?????????# ! ##?????????????? | | ?????????????? #???????# #??????????????? | | ?????????????? ??????# ##??????????????? | | ????????????? ????# ##???????????????? | | ????????????? #### #????????????????? | | ????????????? ##????????????????? | | ?????????????" ##????????????????? | | ?????????????" ###### #????????????????? | | ??????????????? ???????### t #????????????????? | | ???????????????????????#=@s ##????????????????? | | ??????????????????????# ss ##?????????????????? | | ??????????????????????# ##??????????????????? | | ??????????????????????## ??????????????????? | | ???????????????????????### ????????????????? | | ?????????????????????????## ####???????????????? | | ??????????????????????????## #??????????????????? | | ???????????????????????????# ??????????????????? | | ???????????????????????????## #?????????????????? | | ????????????????????????????? ##?????????????????? | | ????????????????????????????? #??????????????????? | | ????????????????????????????? #??????????????????? | | ?????????????????????????????##??????????????????? | | ?????????????????????????????????????????????????? | | ?????????????????????????????????????????????????? | | ?????????????????????????????????????????????????? | | ?????????????????????????????????????????????????? | | ?????????????????????????????????????????????????? | | ?????????????????????????????????????????????????? | | ?????????????????????????????????????????????????? | | ?????????????????????????????????????????????????? | | ?????????????????????????????????????????????????? | | ?????????????????????????????????????????????????? | | ?????????????????????????????????????????????????? | | ?????????????????????????????????????????????????? | +----------------------------------------------------+ Best States ------------- Heat Dissipation 25 Energy Generation 10 Energy Capacity 250 Matter Stores 300 Matter Capacity 300 Sight Range 16 Terrain Scan Density 10 Evasion (%) 44 Recoil Reduction 2 Item Schematics ----------------- None Robot Schematics ------------------ None Fabricated ------------ Nothing Alien Tech Used ----------------- None Achievements -------------- None Challenges ------------ None Game ------ Seed NullHardcellProtection Manual? 0 Play Time 00:12:59 Cumulative 32.6 hours Start 2024.04.17 @ 20:15:27 End 2024.04.17 @ 20:27:41 Sessions 1 Manual Loads 0 Difficulty Rogue Special Mode None Game No. 66 Rogue 66 Adventurer 0 Explorer 0 Win Type - Total 0 Types 0/0/0/0/0/0/0/0/0 Lore% 23 Gallery% 26 Achievement% 23 Wizard Run 0 Options --------- Layout 0 ASCII 0 Keyboard 0 Movement Mouse Keybinds 0 Fullscreen 1 Font 24/Smallcaps Map View 76x50 Zoom Use 0% Tactical HUD 1 Map Filters NONE Filters NONE Steam 1 RUN: a4fc9d32-4682-4859-9704-9418bfed5ef5